Workbook

Sheet Gastos
B3: Presupuesto de evento para [Nombre del evento]
H4: Gastos
H6: Estimado | I6: Real
C7: Gastos totales | H7: =SUM(D14,D22,D28,D35,H14,H22,H27) -> 1,145.00 € | I7: =SUM(E14,E22,E28,E35,I14,I22,I27) -> 395.00 €
C9: Sitio | D9: Estimado | E9: Real | G9: Aperitivos | H9: Estimado | I9: Real
C10: Gastos de sala y auditorio | D10: 500.00 € | E10: 250.00 € | G10: Comida
C11: Personal del sitio | D11: 400.00 € | E11: 50.00 € | G11: Bebidas
C12: Equipamiento | G12: Mantelería
C13: Mesas y sillas | G13: Personal y compensaciones
C14: Total | D14: =SUBTOTAL(109,Tabla1[Estimado]) -> 900.00 € | E14: =SUBTOTAL(109,Tabla1[Real]) -> 300.00 € | G14: Total | H14: =SUBTOTAL(109,Tabla5[Estimado]) -> 0.00 € | I14: =SUBTOTAL(109,Tabla5[Real]) -> 0.00 €
C16: Decoraciones | D16: Estimado | E16: Real | G16: Programa | H16: Estimado | I16: Real
C17: Flores | D17: 200.00 € | E17: 50.00 € | G17: Artistas
C18: Velas | G18: Altavoces
C19: Iluminación | G19: Viaje
C20: Globos | G20: Hotel
C21: Suministros de papel | G21: Otros
C22: Total | D22: =SUBTOTAL(109,Tabla2[Estimado]) -> 200.00 € | E22: =SUBTOTAL(109,Tabla2[Real]) -> 50.00 € | G22: Total | H22: =SUBTOTAL(109,Tabla6[Estimado]) -> 0.00 € | I22: =SUBTOTAL(109,Tabla6[Real]) -> 0.00 €
C24: Publicidad | D24: Estimado | E24: Real | G24: Premios | H24: Estimado | I24: Real
C25: Trabajo de gráficos | D25: 45.00 € | E25: 45.00 € | G25: Cintas, placas y trofeos
C26: Fotocopias e impresión | G26: Regalos
C27: Gastos de envío | G27: Total | H27: =SUBTOTAL(109,Tabla7[Estimado]) -> 0.00 € | I27: =SUBTOTAL(109,Tabla7[Real]) -> 0.00 €
C28: Total | D28: =SUBTOTAL(109,Tabla3[Estimado]) -> 45.00 € | E28: =SUBTOTAL(109,Tabla3[Real]) -> 45.00 €
C30: Varios | D30: Estimado | E30: Real
C31: Teléfono
C32: Transporte
C33: Suministros de papelería
C34: Servicios de fax
C35: Total | D35: =SUBTOTAL(109,Tabla4[Estimado]) -> 0.00 € | E35: =SUBTOTAL(109,Tabla4[Real]) -> 0.00 €

Sheet Ingresos
B3: Presupuesto de evento para [Nombre del evento]
F4: Ingresos
F6: Estimado | G6: Real
B7: Ingresos totales | F7: =SUM(F14,F21,F28,F36) -> 1,936.00 € | G7: =SUM(G14,G21,G28,G36) -> 1,831.00 €
B9: Admisiones
B10: Estimado | C10: Real | F10: Estimado | G10: Real
B11: 300 | C11: 278 | D11: Adultos @ | E11: 5.00 € | F11: =B11*E11 -> 1,500.00 € | G11: =C11*E11 -> 1,390.00 €
B12: 197 | C12: 195 | D12: Niños @ | E12: 2.00 € | F12: =B12*E12 -> 394.00 € | G12: =C12*E12 -> 390.00 €
B13: 42 | C13: 51 | D13: Otros @ | E13: 1.00 € | F13: =B13*E13 -> 42.00 € | G13: =C13*E13 -> 51.00 €
F14: =SUM(F11:F13) -> 1,936.00 € | G14: =SUM(G11:G13) -> 1,831.00 €
B16: Anuncios de programa
B17: Estimado | C17: Real | F17: Estimado | G17: Real
D18: Portadas @ | F18: =B18*E18 -> 0.00 € | G18: =C18*E18 -> 0.00 €
D19: Medias páginas @ | F19: =B19*E19 -> 0.00 € | G19: =C19*E19 -> 0.00 €
D20: Cuartos de página @ | F20: =B20*E20 -> 0.00 € | G20: =C20*E20 -> 0.00 €
F21: =SUM(F18:F20) -> 0.00 € | G21: =SUM(G18:G20) -> 0.00 €
B23: Expositores y proveedores
B24: Estimado | C24: Real | F24: Estimado | G24: Real
D25: Stands grandes @ | F25: =B25*E25 -> 0.00 € | G25: =C25*E25 -> 0.00 €
D26: Stands medianos @ | F26: =B26*E26 -> 0.00 € | G26: =C26*E26 -> 0.00 €
D27: Stands pequeños @ | F27: =B27*E27 -> 0.00 € | G27: =C27*E27 -> 0.00 €
F28: =SUM(F25:F27) -> 0.00 € | G28: =SUM(G25:G27) -> 0.00 €
B30: Venta de productos
B31: Estimado | C31: Real | F31: Estimado | G31: Real
D32: Artículos @ | F32: =B32*E32 -> 0.00 € | G32: =C32*E32 -> 0.00 €
D33: Artículos @ | F33: =B33*E33 -> 0.00 € | G33: =C33*E33 -> 0.00 €
D34: Artículos @ | F34: =B34*E34 -> 0.00 € | G34: =C34*E34 -> 0.00 €
D35: Artículos @ | F35: =B35*E35 -> 0.00 € | G35: =C35*E35 -> 0.00 €
F36: =SUM(F32:F35) -> 0.00 € | G36: =SUM(G32:G35) -> 0.00 €

Sheet Resumen
B3: Presupuesto de evento para [Nombre del evento]
F4: Resumen de ganancias y pérdidas
F6: Estimado | G6: Real
B7: Ingresos totales | F7: =Ingresos!F7 -> 1,936.00 € | G7: =Ingresos!G7 -> 1,831.00 €
B8: Gastos totales | F8: =Gastos!H7 -> 1,145.00 € | G8: =Gastos!I7 -> 395.00 €
B9: Beneficio total (o pérdida) | F9: =F7-F8 -> 791.00 € | G9: =G7-G8 -> 1,436.00 €
